Body,Body Name,Date,TransNo,Amount � (Excl VAT),Supplier name,Description,Expense Area,Expense Type,Expense Code,
http://opendatacommunities.org/id/london-borough-council/sutton,London Borough of Sutton,06/11/2018,1264376,5.17 , AMZN MKTP UK MT2D77I64,TOYS,Peoples Services Directorate,Education Equipment,F009,
http://opendatacommunities.org/id/london-borough-council/sutton,London Borough of Sutton,09/11/2018,1264376,(5.17), AMZ BARGAINS 4 EVER,AMAZON REFUND,Peoples Services Directorate,Education Equipment,F009,
http://opendatacommunities.org/id/london-borough-council/sutton,London Borough of Sutton,08/11/2018,1264376,19.97 , AMZN MKTP UK M83ST1C54,TOYS/EQUIPMENT,Peoples Services Directorate,Education Equipment,F009,
http://opendatacommunities.org/id/london-borough-council/sutton,London Borough of Sutton,08/11/2018,1264376,36.42 , BAKER ROSS,TOYS/EQUIPMENT,Peoples Services Directorate,Education Equipment,F009,
http://opendatacommunities.org/id/london-borough-council/sutton,London Borough of Sutton,06/11/2018,1264376,12.49 , AMZN MKTP UK MT7VJ5IR4,TOYS/EQUIPMENT,Peoples Services Directorate,Education Equipment,F009,
http://opendatacommunities.org/id/london-borough-council/sutton,London Borough of Sutton,19/11/2018,1264376,83.17 , SAINSBURYS TO YOU 0052,SAINSBURYS SHOP,Peoples Services Directorate,Provisions - General,F150,
http://opendatacommunities.org/id/london-borough-council/sutton,London Borough of Sutton,29/10/2018,1264376,75.54 , SAINSBURYS TO YOU 0052,SAINSBURYS SHOP,Peoples Services Directorate,Provisions - General,F150,
http://opendatacommunities.org/id/london-borough-council/sutton,London Borough of Sutton,05/11/2018,1264376,80.18 , SAINSBURYS TO YOU 0052,SAINSBURYS SHOP,Peoples Services Directorate,Refreshments,F155,
http://opendatacommunities.org/id/london-borough-council/sutton,London Borough of Sutton,05/11/2018,1264376,(0.37), SAINSBURYS TO YOU 0052,SAINSBURYS SHOP REFUND,Peoples Services Directorate,Refreshments,F155,
http://opendatacommunities.org/id/london-borough-council/sutton,London Borough of Sutton,09/11/2018,1264376,75.00 , HILTON,HOTEL - TRAINING COURSE,Peoples Services Directorate,Travelling and Subsistence Allowances,A530,
http://opendatacommunities.org/id/london-borough-council/sutton,London Borough of Sutton,12/11/2018,1264376,470.00 , WWW.WESTMINSTER-BRIEFI,TRAINING COURSE,Peoples Services Directorate,Conferences - Fees,A525,
http://opendatacommunities.org/id/london-borough-council/sutton,London Borough of Sutton,05/11/2018,1264376,208.33 , HOWARD LEAGUE,YOT TRAINING COURSE,Peoples Services Directorate,Conferences - Fees,A525,
http://opendatacommunities.org/id/london-borough-council/sutton,London Borough of Sutton,01/11/2018,1264376,(8.32), ARGOS RETAIL GROUP,REFUND - TOWELS NOT COLLECTED,Peoples Services Directorate,Domestic Supplies,D801,
http://opendatacommunities.org/id/london-borough-council/sutton,London Borough of Sutton,23/11/2018,1264376,158.30 , ARGOS RETAIL GROUP,JM ARGOS - SETTING UP,Peoples Services Directorate,Domestic Supplies,D801,
http://opendatacommunities.org/id/london-borough-council/sutton,London Borough of Sutton,23/11/2018,1264376,89.17 , SUTTON APPLIANCES,NA SETTING UP,Peoples Services Directorate,Domestic Supplies,D801,
http://opendatacommunities.org/id/london-borough-council/sutton,London Borough of Sutton,22/11/2018,1264376,660.00 , SUTTON APPLIANCES,NA SETTING UP,Peoples Services Directorate,Domestic Supplies,D801,
http://opendatacommunities.org/id/london-borough-council/sutton,London Borough of Sutton,14/11/2018,1264376,16.99 , AMZN MKTP UK M863O5AI4,16.99 - F106 0304 9999 - AMAZON ORDER LCT.PNG,Peoples Services Directorate,Personal Requisites,F106,
http://opendatacommunities.org/id/london-borough-council/sutton,London Borough of Sutton,20/11/2018,1264376,41.92 , PRIMARK,KB WINTER UNDERWEAR PRISON,Peoples Services Directorate,Personal Requisites,F106,
http://opendatacommunities.org/id/london-borough-council/sutton,London Borough of Sutton,01/11/2018,1264376,17.83 , WWW.SECURE-PAYMENT-SER,DN PRISON MONEY,Peoples Services Directorate,Personal Requisites,F106,
http://opendatacommunities.org/id/london-borough-council/sutton,London Borough of Sutton,31/10/2018,1264376,12.67 , PEACOCK STORES LTD,FCF BABY PRESENT,Peoples Services Directorate,Personal Requisites,F106,
http://opendatacommunities.org/id/london-borough-council/sutton,London Borough of Sutton,31/10/2018,1264376,9.17 , BOOTS 1541,FCF BABY PRESENT,Peoples Services Directorate,Personal Requisites,F106,
http://opendatacommunities.org/id/london-borough-council/sutton,London Borough of Sutton,13/11/2018,1264376,16.24 , PIZZA HUT ONLINE WEB,PIZZA FOR UASC GROUP,Peoples Services Directorate,Refreshments,F155,
http://opendatacommunities.org/id/london-borough-council/sutton,London Borough of Sutton,20/11/2018,1264376,9.37 , JUST EAT,SF DINNER IN EMERGENCY PLACEMENT,Peoples Services Directorate,Refreshments,F155,
http://opendatacommunities.org/id/london-borough-council/sutton,London Borough of Sutton,19/11/2018,1264376,32.71 , TESCO STORES 3235,SF CLOTHING - EMERGENCY PLACEMENT,Peoples Services Directorate,Residents/Clients Clothing,F182,
http://opendatacommunities.org/id/london-borough-council/sutton,London Borough of Sutton,22/11/2018,1264376,68.75 , PREMIER INN,82.50 - H202 0304 9999 - PREMIER INN HERNE BAY.PNG,Peoples Services Directorate,Accommodation - Bed and Breakfast,H202,
http://opendatacommunities.org/id/london-borough-council/sutton,London Borough of Sutton,19/11/2018,1264376,127.25 , TRAVELODGE,SF TRAVELODGE (EMERGENCY ACCOMMODATION),Peoples Services Directorate,C.C.A Travel & Subsistance,H212,
http://opendatacommunities.org/id/london-borough-council/sutton,London Borough of Sutton,13/11/2018,1264376,104.17 , PHOENIX MOTORCYCLE TRA,MOTORCYCLE TEST - KB,Peoples Services Directorate,Education Allowance,H321,
http://opendatacommunities.org/id/london-borough-council/sutton,London Borough of Sutton,21/11/2018,1264376,48.33 , TESCO STORE 3235,YP XMAS PRESENTS,Peoples Services Directorate,Set Up Costs - Children Leaving Care,H336,
http://opendatacommunities.org/id/london-borough-council/sutton,London Borough of Sutton,20/11/2018,1264376,35.58 , TESCO STORE 3235,DN SETTING UP,Peoples Services Directorate,Set Up Costs - Children Leaving Care,H336,
http://opendatacommunities.org/id/london-borough-council/sutton,London Borough of Sutton,12/11/2018,1264376,331.67 , SMART LINEFURNITURE,LC SET UP,Peoples Services Directorate,Set Up Costs - Children Leaving Care,H336,
http://opendatacommunities.org/id/london-borough-council/sutton,London Borough of Sutton,10/11/2018,1264376,73.31 , DUNELM LTD,IF SET UP,Peoples Services Directorate,Set Up Costs - Children Leaving Care,H336,
http://opendatacommunities.org/id/london-borough-council/sutton,London Borough of Sutton,06/11/2018,1264376,125.42 , TVLICENSING.CO.UK,TV LICENSE LC,Peoples Services Directorate,Set Up Costs - Children Leaving Care,H336,
http://opendatacommunities.org/id/london-borough-council/sutton,London Borough of Sutton,07/11/2018,1264376,485.83 , SUTTON APPLIANCES,LC SETTING UP,Peoples Services Directorate,Set Up Costs - Children Leaving Care,H336,
http://opendatacommunities.org/id/london-borough-council/sutton,London Borough of Sutton,02/11/2018,1264376,74.99 , ARGOS LTD,IF SET UP,Peoples Services Directorate,Set Up Costs - Children Leaving Care,H336,
http://opendatacommunities.org/id/london-borough-council/sutton,London Borough of Sutton,31/10/2018,1264376,103.33 , BRITISH HEART FOUNDATI,MA BED SETTING UP,Peoples Services Directorate,Set Up Costs - Children Leaving Care,H336,
http://opendatacommunities.org/id/london-borough-council/sutton,London Borough of Sutton,29/10/2018,1264376,273.33 , BRITISH HEART FOUNDATI,JC SETTING UP,Peoples Services Directorate,Set Up Costs - Children Leaving Care,H336,
http://opendatacommunities.org/id/london-borough-council/sutton,London Borough of Sutton,20/11/2018,1264376,232.50 , CURRYS ONLINE,CURRYS PC ORDER,Peoples Services Directorate,Personal Requisites,F106,
http://opendatacommunities.org/id/london-borough-council/sutton,London Borough of Sutton,13/11/2018,1264376,16.67 , WILKO RETAIL LIMIT,ITEMS FOR QUAD CLIENT KITCHEN,Peoples Services Directorate,Personal Requisites,F106,
http://opendatacommunities.org/id/london-borough-council/sutton,London Borough of Sutton,21/11/2018,1264376,147.44 , TRIP.COM TRIP.COM,147.44 - H202 0305 9999 - TRIP.COM .PNG,Peoples Services Directorate,Accommodation - Bed and Breakfast,H202,
http://opendatacommunities.org/id/london-borough-council/sutton,London Borough of Sutton,21/11/2018,1264376,149.31 , AMOMA RESERVATIO,149.31 - H202 0305 9999 - AMOMA HOTEL BOOKING,Peoples Services Directorate,Accommodation - Bed and Breakfast,H202,
http://opendatacommunities.org/id/london-borough-council/sutton,London Borough of Sutton,19/11/2018,1264376,4.90 , STATIONERY OFFICE BOOK,4.90 - F104 0308 9999 - STATIONARY .PNG,Peoples Services Directorate,Materials - General,F100,
http://opendatacommunities.org/id/london-borough-council/sutton,London Borough of Sutton,05/11/2018,1264376,4.08 , STATIONERY OFFICE BOOK,REGULATION BOOK,Peoples Services Directorate,Materials - General,F100,
http://opendatacommunities.org/id/london-borough-council/sutton,London Borough of Sutton,02/11/2018,1264376,"2,138.33 ", TRAVELODGE,2566 - H211 0310 9999 - TRAVELODGE,Peoples Services Directorate,Accommodation - Bed and Breakfast,H202,
http://opendatacommunities.org/id/london-borough-council/sutton,London Borough of Sutton,31/10/2018,1264376,498.75 , TRAVELODGE,598.50 - H202 0310 9999 - TRAVELODGE.PNG,Peoples Services Directorate,Accommodation - Bed and Breakfast,H202,
http://opendatacommunities.org/id/london-borough-council/sutton,London Borough of Sutton,29/10/2018,1264376,577.92 , TRAVELODGE,EMERGENCY ACCOMMODATION,Peoples Services Directorate,Accommodation - Bed and Breakfast,H202,
http://opendatacommunities.org/id/london-borough-council/sutton,London Borough of Sutton,19/11/2018,1264376,9.25 , GRO HM PASSPORT OFFICE,9.25 - F106 0311 9999 - BIRTH CERTIFICATE GRO.PNG,Peoples Services Directorate,Travelling and Subsistence Allowances,A530,
http://opendatacommunities.org/id/london-borough-council/sutton,London Borough of Sutton,19/11/2018,1264376,15.00 , OYSTER ONLINE,15.00 - PURCHASE OF OYSTER - 19.11.2018 - A530 0312 9999.PNG,Peoples Services Directorate,Travelling and Subsistence Allowances,A530,
http://opendatacommunities.org/id/london-borough-council/sutton,London Borough of Sutton,03/11/2018,1264376,37.12 , ENTERPRISE RENT-A-CAR,37.12 - A530 0311 9999 - ENTERPRISE RENT A CAR .PNG,Peoples Services Directorate,Travelling and Subsistence Allowances,A530,
http://opendatacommunities.org/id/london-borough-council/sutton,London Borough of Sutton,02/11/2018,1264376,20.00 , LBSUTTON,20.00 - F106 0311 9999 - SUTTON REGISTER OFFICE-.PNG,Peoples Services Directorate,Travelling and Subsistence Allowances,A530,
http://opendatacommunities.org/id/london-borough-council/sutton,London Borough of Sutton,29/10/2018,1264376,216.00 , DART-CHARGE,216.00 - F106 0311 9999 - DART CHARGE.PNG AWAITING RECEIPT FROM THE COMPANY.,Peoples Services Directorate,Travelling and Subsistence Allowances,A530,
http://opendatacommunities.org/id/london-borough-council/sutton,London Borough of Sutton,26/10/2018,1264376,20.00 , OYSTER AUTO-TOP UP,20.00 AUTO TOP UP - A530 0311 9999 -.PDF,Peoples Services Directorate,Travelling and Subsistence Allowances,A530,
http://opendatacommunities.org/id/london-borough-council/sutton,London Borough of Sutton,22/11/2018,1264376,(10.00), OYSTER ONLINE,TEST,Peoples Services Directorate,Travelling and Subsistence Allowances,A530,
http://opendatacommunities.org/id/london-borough-council/sutton,London Borough of Sutton,13/11/2018,1264376,500.00 , WM MORRISONS STORE,STORE VOUCHERS,Peoples Services Directorate,Personal Requisites,F106,
http://opendatacommunities.org/id/london-borough-council/sutton,London Borough of Sutton,08/11/2018,1264376,20.00 , LBSUTTON,BIRTH CERTIFICATE,Peoples Services Directorate,Personal Requisites,F106,
http://opendatacommunities.org/id/london-borough-council/sutton,London Borough of Sutton,06/11/2018,1264376,30.00 , LBSUTTON,BIRTH CERTIFICATE,Peoples Services Directorate,Personal Requisites,F106,
http://opendatacommunities.org/id/london-borough-council/sutton,London Borough of Sutton,06/11/2018,1264376,20.00 , LBSUTTON,BIRTH CERTIFICATE,Peoples Services Directorate,Personal Requisites,F106,
http://opendatacommunities.org/id/london-borough-council/sutton,London Borough of Sutton,06/11/2018,1264376,20.00 , LBSUTTON,BIRTH CERTIFICATE,Peoples Services Directorate,Personal Requisites,F106,
http://opendatacommunities.org/id/london-borough-council/sutton,London Borough of Sutton,08/11/2018,1264376,(10.00), LBSUTTON,REFUND OF BIRTH CERTIFICATE,Peoples Services Directorate,Personal Requisites,F106,
http://opendatacommunities.org/id/london-borough-council/sutton,London Borough of Sutton,08/11/2018,1264376,(30.00), LBSUTTON,REFUND BIRTH CERTIFICATE,Peoples Services Directorate,Personal Requisites,F106,
http://opendatacommunities.org/id/london-borough-council/sutton,London Borough of Sutton,21/11/2018,1264376,226.94 , WWW.ARGOS.CO.UK,241.94 - F106 0311 9999 - ARGOS ORDER-.PNG,Peoples Services Directorate,Other-Materials,F115,
http://opendatacommunities.org/id/london-borough-council/sutton,London Borough of Sutton,15/11/2018,1264376,54.99 , ARGOS DIRECT,54.99 - F106 0311 9999 - ARGOS.PNG,Peoples Services Directorate,Other-Materials,F115,
http://opendatacommunities.org/id/london-borough-council/sutton,London Borough of Sutton,21/11/2018,1264376,15.00 , WWW.ARGOS.CO.UK,15.00 - ARGOS - F106 0311 9999 .PNG,Peoples Services Directorate,Client Care/Assistance,H301,
http://opendatacommunities.org/id/london-borough-council/sutton,London Borough of Sutton,01/11/2018,1264376,290.00 , WWW.KENT.GOV.UK,TRAVEL PASS FOR A LAC CHILD,Peoples Services Directorate,Client Care/Assistance,H301,
http://opendatacommunities.org/id/london-borough-council/sutton,London Borough of Sutton,19/11/2018,1264376,15.00 , OYSTER ONLINE,15.00 - PURCHASE OF OYSTER - 19.11.2018 - A530 0312 9999.PNG,Peoples Services Directorate,Travelling and Subsistence Allowances,A530,
http://opendatacommunities.org/id/london-borough-council/sutton,London Borough of Sutton,19/11/2018,1264376,15.00 , OYSTER ONLINE,15.00 - PURCHASE OF OYSTER - 19.11.2018 - A530 0312 9999.PNG,Peoples Services Directorate,Travelling and Subsistence Allowances,A530,
http://opendatacommunities.org/id/london-borough-council/sutton,London Borough of Sutton,16/11/2018,1264376,53.00 , NATIONAL EXPRESS LIMIT,53.00 - A530 0312 9999 - NATIONAL COACH.PNG,Peoples Services Directorate,Travelling and Subsistence Allowances,A530,
http://opendatacommunities.org/id/london-borough-council/sutton,London Borough of Sutton,09/11/2018,1264376,20.00 , OYSTER AUTO-TOP UP,20.00 AUTO TOP UP - A530 0312 9999 - OYSTER.PDF,Peoples Services Directorate,Travelling and Subsistence Allowances,A530,
http://opendatacommunities.org/id/london-borough-council/sutton,London Borough of Sutton,07/11/2018,1264376,20.00 , OYSTER AUTO-TOP UP,20.00 AUTO TOP UP - A530 0312 9999 - OYSTER (1).PNG,Peoples Services Directorate,Travelling and Subsistence Allowances,A530,
http://opendatacommunities.org/id/london-borough-council/sutton,London Borough of Sutton,03/11/2018,1264376,20.00 , OYSTER AUTO-TOP UP,20.00 AUTO TOP UP - A530 0312 9999 - OYSTER.PDF,Peoples Services Directorate,Travelling and Subsistence Allowances,A530,
http://opendatacommunities.org/id/london-borough-council/sutton,London Borough of Sutton,02/11/2018,1264376,20.00 , OYSTER AUTO-TOP UP,Oyster Top up,Peoples Services Directorate,Travelling and Subsistence Allowances,A530,
http://opendatacommunities.org/id/london-borough-council/sutton,London Borough of Sutton,30/10/2018,1264376,57.00 , NATIONAL EXPRESS LIMIT,57.00 - A530 0312 9999 - NATIONAL EXPRESS VB.PNG,Peoples Services Directorate,Travelling and Subsistence Allowances,A530,
http://opendatacommunities.org/id/london-borough-council/sutton,London Borough of Sutton,15/11/2018,1264376,3.67 , AMZN MKTP UK M86726E44,STATIONARY ITEM,Peoples Services Directorate,Travelling and Subsistence Allowances,A530,
http://opendatacommunities.org/id/london-borough-council/sutton,London Borough of Sutton,19/11/2018,1264376,15.00 , OYSTER ONLINE,15.00 - PURCHASE OF OYSTER - 19.11.2018 - A530 0312 9999.PNG,Peoples Services Directorate,Travelling and Subsistence Allowances,A530,
http://opendatacommunities.org/id/london-borough-council/sutton,London Borough of Sutton,19/11/2018,1264376,15.00 , OYSTER ONLINE,15.00 - PURCHASE OF OYSTER - 19.11.2018 - A530 0312 9999.PNG,Peoples Services Directorate,Travelling and Subsistence Allowances,A530,
http://opendatacommunities.org/id/london-borough-council/sutton,London Borough of Sutton,25/11/2018,1264376,20.00 , OYSTER AUTO-TOP UP,20.00 - A530 0312 9999 - OYSTER CARD AUTO TOPUP.PDF,Peoples Services Directorate,Travelling and Subsistence Allowances,A530,
http://opendatacommunities.org/id/london-borough-council/sutton,London Borough of Sutton,14/11/2018,1264376,53.00 , NATIONAL EXPRESS LIMIT,CONTACT VISIT,Peoples Services Directorate,Travelling and Subsistence Allowances,A530,
http://opendatacommunities.org/id/london-borough-council/sutton,London Borough of Sutton,14/11/2018,1264376,57.00 , NATIONAL EXPRESS LIMIT,CONTACT VISIT,Peoples Services Directorate,Travelling and Subsistence Allowances,A530,
http://opendatacommunities.org/id/london-borough-council/sutton,London Borough of Sutton,22/11/2018,1264376,57.00 , NATIONAL EXPRESS LIMIT,57.00 - A530 0312 9999 - NATIOANAL EXPRESS.PNG,Peoples Services Directorate,Recruitment Expenses,A531,
http://opendatacommunities.org/id/london-borough-council/sutton,London Borough of Sutton,21/11/2018,1264376,35.00 , WESTMINSTER CITY COUNC,35.00 - F106 0312 9999 - WESTMINSTER REGUSTER OFFICE -.PNG,Peoples Services Directorate,Personal Requisites,F106,
http://opendatacommunities.org/id/london-borough-council/sutton,London Borough of Sutton,05/11/2018,1264376,10.00 , LBSUTTON,BIRTH CERTIFICATE,Peoples Services Directorate,Personal Requisites,F106,
http://opendatacommunities.org/id/london-borough-council/sutton,London Borough of Sutton,05/11/2018,1264376,10.00 , LBSUTTON,BIRTH CERTIFICATE,Peoples Services Directorate,Personal Requisites,F106,
http://opendatacommunities.org/id/london-borough-council/sutton,London Borough of Sutton,05/11/2018,1264376,10.00 , LBSUTTON,BIRTH CERTIFICATE,Peoples Services Directorate,Personal Requisites,F106,
http://opendatacommunities.org/id/london-borough-council/sutton,London Borough of Sutton,20/11/2018,1264376,7.71 , GRO HM PASSPORT OFFICE,BIRTH CERT FOR COURT TEAM.PNG,Peoples Services Directorate,Personal Requisites,F106,
http://opendatacommunities.org/id/london-borough-council/sutton,London Borough of Sutton,13/11/2018,1264376,30.00 , LBSUTTON,BIRTH CERTS,Peoples Services Directorate,Personal Requisites,F106,
http://opendatacommunities.org/id/london-borough-council/sutton,London Borough of Sutton,09/11/2018,1264376,20.00 , LBSUTTON,BIRTH CERTIFICATE,Peoples Services Directorate,Personal Requisites,F106,
http://opendatacommunities.org/id/london-borough-council/sutton,London Borough of Sutton,09/11/2018,1264376,20.00 , LBSUTTON,BIRTH CERTIFICATE,Peoples Services Directorate,Personal Requisites,F106,
http://opendatacommunities.org/id/london-borough-council/sutton,London Borough of Sutton,08/11/2018,1264376,(10.00), LBSUTTON,REFUND OF BIRTH CERTIFICATE,Peoples Services Directorate,Personal Requisites,F106,
http://opendatacommunities.org/id/london-borough-council/sutton,London Borough of Sutton,12/11/2018,1264376,94.66 , TESCO STORES 5999,REFRESHMENTS,Peoples Services Directorate,Refreshments,F155,
http://opendatacommunities.org/id/london-borough-council/sutton,London Borough of Sutton,15/11/2018,1264376,"1,014.17 ", TRAVELODGE,"1,217.00 - H212 0316 9999 - TRAVELODGE WIMBLEDON MORDEN.PNG",Peoples Services Directorate,C.C.A Travel & Subsistance,H212,
http://opendatacommunities.org/id/london-borough-council/sutton,London Borough of Sutton,17/11/2018,1264376,20.00 , OYSTER AUTO-TOP UP,20.00 AUTO TOP UP - A530 0318 9999 - 19.11.2018.PDF,Peoples Services Directorate,Travelling and Subsistence Allowances,A530,
http://opendatacommunities.org/id/london-borough-council/sutton,London Borough of Sutton,17/11/2018,1264376,20.00 , OYSTER AUTO-TOP UP,20.00 AUTO TOP UP - A530 0318 9999 - 19.11.2018.PDF,Peoples Services Directorate,Travelling and Subsistence Allowances,A530,
http://opendatacommunities.org/id/london-borough-council/sutton,London Borough of Sutton,31/10/2018,1264376,20.00 , OYSTER AUTO-TOP UP,20.00 - AUTO TOP UP - A530 0318 9999 - .PDF,Peoples Services Directorate,Travelling and Subsistence Allowances,A530,
http://opendatacommunities.org/id/london-borough-council/sutton,London Borough of Sutton,27/10/2018,1264376,20.00 , OYSTER AUTO-TOP UP,20.00 - AUTO TOP UP - A530 0318 9999 - .PDF,Peoples Services Directorate,Travelling and Subsistence Allowances,A530,
http://opendatacommunities.org/id/london-borough-council/sutton,London Borough of Sutton,27/10/2018,1264376,20.00 , OYSTER AUTO-TOP UP,20.00 - AUTO TOP UP - A530 0318 9999 - .PDF,Peoples Services Directorate,Travelling and Subsistence Allowances,A530,
http://opendatacommunities.org/id/london-borough-council/sutton,London Borough of Sutton,28/10/2018,1264376,20.00 , OYSTER AUTO-TOP UP,20.00 - AUTO TOP UP - A530 0318 9999 - .PDF,Peoples Services Directorate,Travelling and Subsistence Allowances,A530,
http://opendatacommunities.org/id/london-borough-council/sutton,London Borough of Sutton,15/11/2018,1264376,60.42 , TRAVELODGE,72.50 - H202 0318 9999 - TRAVELODGE SOUTH CROYDON.PNG,Peoples Services Directorate,Accommodation - Bed and Breakfast,H202,
http://opendatacommunities.org/id/london-borough-council/sutton,London Borough of Sutton,06/11/2018,1264376,617.50 , TRAVELODGE,EMERGENCY ACCOMMODATION,Peoples Services Directorate,Accommodation - Bed and Breakfast,H202,
http://opendatacommunities.org/id/london-borough-council/sutton,London Borough of Sutton,19/11/2018,1264376,19.80 , WWW.WIGHTLINK.CO.UK,19.80 - A530 0320 9999 - WIGTLINK - BECKY PAGE,Peoples Services Directorate,Travelling and Subsistence Allowances,A530,
http://opendatacommunities.org/id/london-borough-council/sutton,London Borough of Sutton,17/11/2018,1264376,20.00 , OYSTER AUTO-TOP UP,20.00 - A530 0321 9999 - 19.11.2018.PDF,Peoples Services Directorate,Travelling and Subsistence Allowances,A530,
http://opendatacommunities.org/id/london-borough-council/sutton,London Borough of Sutton,31/10/2018,1264376,47.50 , NATIONAL EXPRESS LIMIT,CONTACT VISIT,Peoples Services Directorate,Travelling and Subsistence Allowances,A530,
http://opendatacommunities.org/id/london-borough-council/sutton,London Borough of Sutton,31/10/2018,1264376,47.50 , NATIONAL EXPRESS LIMIT,CONTACT VISIT,Peoples Services Directorate,Travelling and Subsistence Allowances,A530,
http://opendatacommunities.org/id/london-borough-council/sutton,London Borough of Sutton,26/10/2018,1264376,195.00 , PREMIER INN,234.00 - H202 0321 9999 - PREMIER INN.PNG,Peoples Services Directorate,Accommodation - Bed and Breakfast,H202,
http://opendatacommunities.org/id/london-borough-council/sutton,London Borough of Sutton,06/11/2018,1264376,23.33 , WWW.FLOWERWORLD.CO,FLOWERS FOR FOSTER CARER,Peoples Services Directorate,Personal Requisites,F106,
http://opendatacommunities.org/id/london-borough-council/sutton,London Borough of Sutton,12/11/2018,1264376,50.26 , TESCO STORES 5999,CONTACT CENTRE REFRESHMENTS FOR CONTACT VISITS,Peoples Services Directorate,Personal Requisites,F106,
http://opendatacommunities.org/id/london-borough-council/sutton,London Borough of Sutton,15/11/2018,1264376,17.98 , AMZN MKTP UK M81Z38064,17.98 - F106 0340 9999 - AMAZON ORDER SFC.PNG,Peoples Services Directorate,Other-Materials,F115,
http://opendatacommunities.org/id/london-borough-council/sutton,London Borough of Sutton,20/11/2018,1264376,73.93 , TESCO STORES 5999,REFRESHMENTS FOR CONTACT VISITS,Peoples Services Directorate,Refreshments,F155,
http://opendatacommunities.org/id/london-borough-council/sutton,London Borough of Sutton,21/11/2018,1264376,23.45 , EMPIRE CINEMAS,23.45 - F106 0340 9999 - EMPIRE CINEMA.PNG,Peoples Services Directorate,Client Care/Assistance,H301,
http://opendatacommunities.org/id/london-borough-council/sutton,London Borough of Sutton,15/11/2018,1264376,1.00 , POUNDLAND LTD 1211,REFRESHMENTS/RESOURCES FOR THE CHILDREN IN CARE COUNCIL MEETING,Chief Executive's Directorate,LAC - Education,F269,
http://opendatacommunities.org/id/london-borough-council/sutton,London Borough of Sutton,15/11/2018,1264376,4.00 , POUNDLAND LTD 1211,REFRESHMENTS/RESOURCES FOR THE CHILDREN IN CARE COUNCIL MEETING,Chief Executive's Directorate,LAC - Education,F269,
http://opendatacommunities.org/id/london-borough-council/sutton,London Borough of Sutton,15/11/2018,1264376,5.00 , POUNDLAND LTD,REFRESHMENTS/RESOURCES FOR THE CHILDREN IN CARE COUNCIL MEETING,Chief Executive's Directorate,LAC - Education,F269,
http://opendatacommunities.org/id/london-borough-council/sutton,London Borough of Sutton,30/10/2018,1264376,61.93 , BRITISH A,FLIGHT - SOCIAL CARE,Peoples Services Directorate,Travelling and Subsistence Allowances,A530,
http://opendatacommunities.org/id/london-borough-council/sutton,London Borough of Sutton,30/10/2018,1264376,96.67 , PREMIER INN,ACCOMMODATION,Peoples Services Directorate,Travelling and Subsistence Allowances,A530,
http://opendatacommunities.org/id/london-borough-council/sutton,London Borough of Sutton,30/10/2018,1264376,57.50 , PREMIER INN,69.00 - H202 0371 9999 - PREMIER INN GLASGOW.PNG,Peoples Services Directorate,Accommodation - Bed and Breakfast,H202,
http://opendatacommunities.org/id/london-borough-council/sutton,London Borough of Sutton,21/11/2018,1264376,20.00 , OYSTER AUTO-TOP UP,20.00 AUTO TOP UP - A530 0383 9999 - 07-11-2018.PNG,Peoples Services Directorate,Travelling and Subsistence Allowances,A530,
http://opendatacommunities.org/id/london-borough-council/sutton,London Borough of Sutton,15/11/2018,1264376,10.00 , OYSTER ONLINE,20.00 AUTO TOP UP - A530 0383 9999 - 07-11-2018.PNG,Peoples Services Directorate,Travelling and Subsistence Allowances,A530,
http://opendatacommunities.org/id/london-borough-council/sutton,London Borough of Sutton,12/11/2018,1264376,24.98 , AMZN MKTP UK M86WH9Z54,AMAZON ORDER,Peoples Services Directorate,Administrative Equipment,F001,
http://opendatacommunities.org/id/london-borough-council/sutton,London Borough of Sutton,26/10/2018,1264376,62.50 , TRAVELODGE,62.50 - H202 384 9999 - TRAVELODGE.PNG,Peoples Services Directorate,Accommodation - Bed and Breakfast,H202,
http://opendatacommunities.org/id/london-borough-council/sutton,London Borough of Sutton,15/11/2018,1264376,281.93 , ARGOS DIRECT,281.93 - H301 0384 9999 - ARGOS,Peoples Services Directorate,Client Care/Assistance,H301,
http://opendatacommunities.org/id/london-borough-council/sutton,London Borough of Sutton,10/11/2018,1264376,20.00 , OYSTER AUTO-TOP UP,OYSTER TOP UP FOR EH&R,"Environment, Housing & Regeneration Directorate",General Office Expenses,F235,
http://opendatacommunities.org/id/london-borough-council/sutton,London Borough of Sutton,02/11/2018,1264376,20.00 , OYSTER AUTO-TOP UP,OYSTER TOP UP FOR EH&R,"Environment, Housing & Regeneration Directorate",General Office Expenses,F235,
http://opendatacommunities.org/id/london-borough-council/sutton,London Borough of Sutton,26/10/2018,1264376,510.00 , WWW.SOLACE.ORG.UK,SOLACE 2019,"Environment, Housing & Regeneration Directorate",Travelling and Subsistence Allowances,A530,
http://opendatacommunities.org/id/london-borough-council/sutton,London Borough of Sutton,08/11/2018,1264376,110.00 , INDIGO PARK SVS UK - L,TEST PCN PAYMENT,"Environment, Housing & Regeneration Directorate",Fees - Other,F299,
http://opendatacommunities.org/id/london-borough-council/sutton,London Borough of Sutton,08/11/2018,1264376,40.00 , INDIGO PARK SVS UK - L,TEST PERMIT PAYMENT,"Environment, Housing & Regeneration Directorate",Fees - Other,F299,
http://opendatacommunities.org/id/london-borough-council/sutton,London Borough of Sutton,08/11/2018,1264376,40.00 , INDIGO PARK SVS UK - L,TEST PERMIT RENEWAL,"Environment, Housing & Regeneration Directorate",Fees - Other,F299,
http://opendatacommunities.org/id/london-borough-council/sutton,London Borough of Sutton,13/11/2018,1264376,30.69 , AMAZON.CO.UK M80232344,UBS LIGHTNING CABLES (WS),"Environment, Housing & Regeneration Directorate",Purchase of IT Equipment,F380,
http://opendatacommunities.org/id/london-borough-council/sutton,London Borough of Sutton,13/11/2018,1264376,(158.88), PAYPAL  QUICKLUTION,PARTIAL REFUND GOOGLE MERGE ADD ON,"Environment, Housing & Regeneration Directorate",Purchase of Software,F381,
http://opendatacommunities.org/id/london-borough-council/sutton,London Borough of Sutton,09/11/2018,1264376,347.55 , PAYPAL  QUICKLUTION,GOOGLE MERGE ADD ON,"Environment, Housing & Regeneration Directorate",Purchase of Software,F381,
http://opendatacommunities.org/id/london-borough-council/sutton,London Borough of Sutton,12/11/2018,1264376,165.00 , WWW.APM.ORG.UK,APM MEMBERSHIP (MD),"Environment, Housing & Regeneration Directorate",Subscriptions - General,F450,
http://opendatacommunities.org/id/london-borough-council/sutton,London Borough of Sutton,02/11/2018,1264376,100.00 , WWW.NECCONTRACT.COM,NEC3  PROFESSIONAL SERVICES CONTRACT BUNDLE - PUBLICATION,"Environment, Housing & Regeneration Directorate",General Office Expenses,F235,
http://opendatacommunities.org/id/london-borough-council/sutton,London Borough of Sutton,08/11/2018,1264376,43.15 , SAINSBURYS TO YOU 0038,WHITEHALL TEA ROOM,Chief Executive's Directorate,Provisions - General,F150,
http://opendatacommunities.org/id/london-borough-council/sutton,London Borough of Sutton,22/11/2018,1264376,38.15 , SAINSBURYS TO YOU 0038,WHITEHALL TEA ROOM,Chief Executive's Directorate,Provisions - General,F150,
http://opendatacommunities.org/id/london-borough-council/sutton,London Borough of Sutton,15/11/2018,1264376,67.15 , SAINSBURYS TO YOU 0038,WHITEHALL TEA ROOM,Chief Executive's Directorate,Provisions - General,F150,
http://opendatacommunities.org/id/london-borough-council/sutton,London Borough of Sutton,01/11/2018,1264376,52.25 , SAINSBURYS TO YOU 0038,WHITEHALL TEA ROOM,Chief Executive's Directorate,Provisions - General,F150,
http://opendatacommunities.org/id/london-borough-council/sutton,London Borough of Sutton,15/11/2018,1264376,32.35 , SAINSBURYS 2331,LITTLE HOLLAND HOUSE EVENT,Chief Executive's Directorate,Arts Programme,F306,
http://opendatacommunities.org/id/london-borough-council/sutton,London Borough of Sutton,23/11/2018,1264376,1.08 , FLICKR PRO 1 YEAR,FLICKR LICENCE FOREIGN EXCHANGE,Chief Executive's Directorate,Other Services,F340,
http://opendatacommunities.org/id/london-borough-council/sutton,London Borough of Sutton,22/11/2018,1264376,39.14 , FLICKR PRO 1 YEAR,ONE YEAR FLICKR LICENCE,Chief Executive's Directorate,Other Services,F340,
http://opendatacommunities.org/id/london-borough-council/sutton,London Borough of Sutton,22/11/2018,1264376,86.67 , HOMEBASE LTD 127,XMAS TREE,Resources Directorate,General Office Expenses,F235,
http://opendatacommunities.org/id/london-borough-council/sutton,London Borough of Sutton,19/11/2018,1264376,16.67 , HOMEBASE LTD 127,XMAS DECORATIONS,Resources Directorate,General Office Expenses,F235,
http://opendatacommunities.org/id/london-borough-council/sutton,London Borough of Sutton,19/11/2018,1264376,38.33 , B & Q 1191,XMAS DECORATIONS,Resources Directorate,General Office Expenses,F235,
http://opendatacommunities.org/id/london-borough-council/sutton,London Borough of Sutton,16/11/2018,1264376,7.11 , WM MORRISONS STORE,REFRESHMENTS,Resources Directorate,General Office Expenses,F235,
http://opendatacommunities.org/id/london-borough-council/sutton,London Borough of Sutton,31/10/2018,1264376,17.91 , TESCO STORE 3235,REFRESHMENTS,Resources Directorate,General Office Expenses,F235,
http://opendatacommunities.org/id/london-borough-council/sutton,London Borough of Sutton,23/11/2018,1264376,69.23 , FLORAL IMAGE SUSSEX,CORPORATE FLOWER HIRE,Resources Directorate,General Office Expenses,F235,
http://opendatacommunities.org/id/london-borough-council/sutton,London Borough of Sutton,03/11/2018,1264376,8.32 , SPOTIFY P08195B937,MUSIC FOR WEDDINGS,Resources Directorate,Subscriptions - General,F450,
http://opendatacommunities.org/id/london-borough-council/sutton,London Borough of Sutton,11/11/2018,1264376,20.00 , OYSTER AUTO-TOP UP,OYSTER TOP UP FOR EH&R,HRA,General Office Expenses,F235,
http://opendatacommunities.org/id/london-borough-council/sutton,London Borough of Sutton,26/10/2018,1264376,20.00 , OYSTER AUTO-TOP UP,OYSTER TOP UP FOR EH&R,HRA,General Office Expenses,F235,
http://opendatacommunities.org/id/london-borough-council/sutton,London Borough of Sutton,25/11/2018,1264376,20.00 , OYSTER AUTO-TOP UP,OYSTER CARD TOP UP,"Environment, Housing & Regeneration Directorate",General Office Expenses,F235,
http://opendatacommunities.org/id/london-borough-council/sutton,London Borough of Sutton,03/11/2018,1264376,20.00 , OYSTER AUTO-TOP UP,OYSTER TOP UP FOR EH&R,"Environment, Housing & Regeneration Directorate",General Office Expenses,F235,
http://opendatacommunities.org/id/london-borough-council/sutton,London Borough of Sutton,26/10/2018,1264376,425.00 , WWW.SOLACE.ORG.UK,PLACE FOR SOLACE SUMMIT 2019,Chief Executive's Directorate,Conferences - Fees,A525,
http://opendatacommunities.org/id/london-borough-council/sutton,London Borough of Sutton,26/10/2018,1264376,425.00 , WWW.SOLACE.ORG.UK,PLACE FOR SOLACE SUMMIT 2019,Chief Executive's Directorate,Conferences - Fees,A525,
http://opendatacommunities.org/id/london-borough-council/sutton,London Borough of Sutton,22/11/2018,1264376,20.00 , OYSTER AUTO-TOP UP,TEAM OYSTER,Chief Executive's Directorate,Travelling and Subsistence Allowances,A530,
http://opendatacommunities.org/id/london-borough-council/sutton,London Borough of Sutton,17/11/2018,1264376,20.00 , OYSTER AUTO-TOP UP,TEAM OYSTER,Chief Executive's Directorate,Travelling and Subsistence Allowances,A530,
http://opendatacommunities.org/id/london-borough-council/sutton,London Borough of Sutton,01/11/2018,1264376,20.00 , OYSTER AUTO-TOP UP,TEAM OYSTER,Chief Executive's Directorate,Travelling and Subsistence Allowances,A530,
http://opendatacommunities.org/id/london-borough-council/sutton,London Borough of Sutton,27/10/2018,1264376,20.00 , OYSTER AUTO-TOP UP,TEAM OYSTER CARD,Chief Executive's Directorate,Travelling and Subsistence Allowances,A530,
http://opendatacommunities.org/id/london-borough-council/sutton,London Borough of Sutton,27/10/2018,1264376,20.00 , OYSTER AUTO-TOP UP,TEAM OYSTER CARD,Chief Executive's Directorate,Travelling and Subsistence Allowances,A530,
http://opendatacommunities.org/id/london-borough-council/sutton,London Borough of Sutton,15/11/2018,1264376,106.68 , TRAINLINE,TRAIN TICKETS TO ATTEND LEADERSHIP MODULE IN BIRMINGHAM 21 - 22 NOVEMBER 2018,Chief Executive's Directorate,Travelling and Subsistence Allowances,A530,
http://opendatacommunities.org/id/london-borough-council/sutton,London Borough of Sutton,23/11/2018,1264376,28.92 , SUBWAY,TAKEOVER DAY REFRESHMENTS,Chief Executive's Directorate,General Office Expenses,F235,
http://opendatacommunities.org/id/london-borough-council/sutton,London Borough of Sutton,30/10/2018,1264376,112.00 , THE MJ/HEMMING GROUP L,MJ ANNUAL SUBSCRIPTION,Chief Executive's Directorate,Subscriptions - General,F450,
http://opendatacommunities.org/id/london-borough-council/sutton,London Borough of Sutton,15/11/2018,1264376,3.20 , MAILCHIMP    MONTHLY,WEB HOSTING,Chief Executive's Directorate,Fees - Computer Software,F384,
http://opendatacommunities.org/id/london-borough-council/sutton,London Borough of Sutton,14/11/2018,1264376,116.39 , MAILCHIMP    MONTHLY,WEB HOSTING,Chief Executive's Directorate,Fees - Computer Software,F384,
http://opendatacommunities.org/id/london-borough-council/sutton,London Borough of Sutton,06/11/2018,1264376,15.00 , OYSTER ONLINE,OYSTER CARD,Resources Directorate,Travelling and Subsistence Allowances,A530,
http://opendatacommunities.org/id/london-borough-council/sutton,London Borough of Sutton,06/11/2018,1264376,15.00 , OYSTER ONLINE,OYSTER CARD,Resources Directorate,Travelling and Subsistence Allowances,A530,
http://opendatacommunities.org/id/london-borough-council/sutton,London Borough of Sutton,06/11/2018,1264376,15.00 , OYSTER ONLINE,OYSTER CARD,Resources Directorate,Travelling and Subsistence Allowances,A530,
http://opendatacommunities.org/id/london-borough-council/sutton,London Borough of Sutton,21/11/2018,1264376,35.27 , WWW.CHOICESTATIONERY.,35.27 -F002 4114 9999 - PURCHASE OF SUPPLIES .PNG,Resources Directorate,Administrative Equipment,F001,
http://opendatacommunities.org/id/london-borough-council/sutton,London Borough of Sutton,15/11/2018,1264376,3.78 , AMZN MKTP UK M82KX4EH4,STATIONARY ITEM,Resources Directorate,General Office Expenses,F235,
http://opendatacommunities.org/id/london-borough-council/sutton,London Borough of Sutton,15/11/2018,1264376,3.67 , AMZN MKTP UK M82XW3AD4,STATIONARY ITEM,Resources Directorate,General Office Expenses,F235,
http://opendatacommunities.org/id/london-borough-council/sutton,London Borough of Sutton,18/11/2018,1264376,20.00 , OYSTER AUTO-TOP UP,OYSTER CARD TOP UP,Resources Directorate,General Office Expenses,F235,
http://opendatacommunities.org/id/london-borough-council/sutton,London Borough of Sutton,17/11/2018,1264376,20.00 , OYSTER AUTO-TOP UP,OYSTER CARD TOP UP,Resources Directorate,General Office Expenses,F235,
http://opendatacommunities.org/id/london-borough-council/sutton,London Borough of Sutton,15/11/2018,1264376,96.00 , HOTEL ON BOOKING.COM,ACCOMMODATION TO ATTEND PENSION MANAGER CONFERENCE,Resources Directorate,Hotel Accomodation,A512,
http://opendatacommunities.org/id/london-borough-council/sutton,London Borough of Sutton,15/11/2018,1264376,89.49 , TRAINLINE,TRAVEL FOR TO ATTEND PENSION MANAGER CONFERENCE,Resources Directorate,Travelling and Subsistence Allowances,A530,
http://opendatacommunities.org/id/london-borough-council/sutton,London Borough of Sutton,12/11/2018,1264376,287.93 , PAYPAL  GOOGLEADDON,PAYPAL - FORM PUBLISHER,Resources Directorate,Purchase of IT Equipment,F380,
http://opendatacommunities.org/id/london-borough-council/sutton,London Borough of Sutton,13/11/2018,1264376,450.00 , MARKS&SPENCER PLC,M&S VOUCHERS - LONG SERVICE AWARDS,Resources Directorate,General Office Expenses,F235,
http://opendatacommunities.org/id/london-borough-council/sutton,London Borough of Sutton,01/11/2018,1264376,69.96 , PICTURE PARTNERSHIP,PHOTOGRAPHS FROM THE LMA CIVIC SERVICE 14TH OCTOBER 2018,Resources Directorate,Printing - General,F215,
http://opendatacommunities.org/id/london-borough-council/sutton,London Borough of Sutton,06/11/2018,1264376,25.82 , CHRISTINES FASH IN FLO,FLOWERS FOR QUIZ MASTER AT MAYOR'S CHARITY QUIZ,Resources Directorate,General Office Expenses,F235,
http://opendatacommunities.org/id/london-borough-council/sutton,London Borough of Sutton,02/11/2018,1264376,5.85 , DAWSONS,LOCKER KEY FOR CLLR,Resources Directorate,Materials - General,F100,
http://opendatacommunities.org/id/london-borough-council/sutton,London Borough of Sutton,07/11/2018,1264376,40.00 , WWW.ICO.GOV.UK,ICO MEMBERSHIP FOR COUNCILLOR,Resources Directorate,Subscriptions - General,F450,
http://opendatacommunities.org/id/london-borough-council/sutton,London Borough of Sutton,14/11/2018,1264376,40.00 , WWW.ICO.GOV.UK,ICO MEMBERSHIP RENEWAL CLLR,Resources Directorate,Subscriptions - General,F450,
http://opendatacommunities.org/id/london-borough-council/sutton,London Borough of Sutton,03/11/2018,1264376,20.00 , OYSTER AUTO-TOP UP,TEAM OYSTER,Chief Executive's Directorate,Travelling and Subsistence Allowances,A530,
http://opendatacommunities.org/id/london-borough-council/sutton,London Borough of Sutton,16/11/2018,1264376,600.00 , POST OFFICE COUNTER,COMMUNITY AWARDS,Chief Executive's Directorate,Corporate Publicity,F356,
http://opendatacommunities.org/id/london-borough-council/sutton,London Borough of Sutton,16/11/2018,1264376,60.00 , WM MORRISONS STORE,COMMUNITY AWARDS,Chief Executive's Directorate,Corporate Publicity,F356,
http://opendatacommunities.org/id/london-borough-council/sutton,London Borough of Sutton,19/11/2018,1264376,175.00 , CHARTERED MNGMENT,CMI SUBSCRIPTION GP,"Environment, Housing & Regeneration Directorate",Subscriptions - General,F450,
http://opendatacommunities.org/id/london-borough-council/sutton,London Borough of Sutton,18/11/2018,1264376,20.00 , OYSTER AUTO-TOP UP,OYSTER TOP UP,Resources Directorate,Travelling and Subsistence Allowances,A530,
http://opendatacommunities.org/id/london-borough-council/sutton,London Borough of Sutton,09/11/2018,1264376,20.00 , OYSTER AUTO-TOP UP,OYSTER TOP UP,Resources Directorate,Travelling and Subsistence Allowances,A530,
http://opendatacommunities.org/id/london-borough-council/sutton,London Borough of Sutton,02/11/2018,1264376,20.00 , OYSTER AUTO-TOP UP,OYSTER TOP UP,Resources Directorate,Travelling and Subsistence Allowances,A530,
http://opendatacommunities.org/id/london-borough-council/sutton,London Borough of Sutton,31/10/2018,1264376,20.00 , OYSTER AUTO-TOP UP,OYSTER TOP UP,Resources Directorate,Travelling and Subsistence Allowances,A530,
http://opendatacommunities.org/id/london-borough-council/sutton,London Borough of Sutton,09/11/2018,1264376,112.00 , THE MJ/HEMMING GROUP L,MJ SUBSCRIPTION FOR STRATEGIC DIRECTOR OF RESOURCES - 1 YEAR,Resources Directorate,Subscriptions - General,F450,
http://opendatacommunities.org/id/london-borough-council/sutton,London Borough of Sutton,31/10/2018,1264376,15.00 , WLY COMPLETESAVE.CO.UK,SUBSCRIPTION - FRAUDULENT TRANSACTION INVESTIGATED BY LLOYDS - TO BE REFUNDED,Resources Directorate,Subscriptions - General,F450,
http://opendatacommunities.org/id/london-borough-council/sutton,London Borough of Sutton,07/11/2018,1264376,645.93 , WWW.ARGOS.CO.UK,CLG,Resources Directorate,Grants,F473,
http://opendatacommunities.org/id/london-borough-council/sutton,London Borough of Sutton,07/11/2018,1264376,(60.00), WWW.ARGOS.CO.UK,CLG,Resources Directorate,Grants,F473,
http://opendatacommunities.org/id/london-borough-council/sutton,London Borough of Sutton,19/11/2018,1264376,443.27 , WWW.ARGOS.CO.UK,"PURCHASE OF SINGLE DIVAN, ELECTRIC COOKER AND FRIDGE FREEZER FOR CRISIS LOAN",Resources Directorate,Grants,F473,
http://opendatacommunities.org/id/london-borough-council/sutton,London Borough of Sutton,19/11/2018,1264376,196.62 , WWW.ARGOS.CO.UK,PURCHASE OF DOUBLE DIVAN FOR CRISIS GRANT,Resources Directorate,Grants,F473,
http://opendatacommunities.org/id/london-borough-council/sutton,London Borough of Sutton,12/11/2018,1264376,509.94 , WWW.ARGOS.CO.UK,"PURCHASE OF SINGLE DIVAN, ELECTRIC COOKER AND FRIDGE FREEZER FOR CRISIS LOAN",Resources Directorate,Grants,F473,
http://opendatacommunities.org/id/london-borough-council/sutton,London Borough of Sutton,02/11/2018,1264376,(3.29), WWW.ARGOS.CO.UK,REFUND OF DELIVERY CHARGE ON GOODS ORDERED FOR CRISIS LOAN,Resources Directorate,Grants,F473,
http://opendatacommunities.org/id/london-borough-council/sutton,London Borough of Sutton,31/10/2018,1264376,258.32 , WWW.ARGOS.CO.UK,PURCHASE OF ELECTRIC COOKER & FRIDGE FREEZER FOR CRISIS LOAN,Resources Directorate,Grants,F473,
http://opendatacommunities.org/id/london-borough-council/sutton,London Borough of Sutton,31/10/2018,1264376,61.62 , WWW.ARGOS.CO.UK,PURCHASE OF COT MATTRESS FOR CRISIS LOAN,Resources Directorate,Grants,F473,
http://opendatacommunities.org/id/london-borough-council/sutton,London Borough of Sutton,26/10/2018,1264376,144.12 , WWW.ARGOS.CO.UK,PURCHASE OF ELECTRIC COOKER FOR CRISIS GRANT,Resources Directorate,Grants,F473,
http://opendatacommunities.org/id/london-borough-council/sutton,London Borough of Sutton,02/11/2018,1264376,666.18 , WWW.ARGOS.CO.UK,CLG,Resources Directorate,Grants,F473,
http://opendatacommunities.org/id/london-borough-council/sutton,London Borough of Sutton,19/11/2018,1264376,529.94 , WWW.ARGOS.CO.UK,"DIVAN, FRIDGE FREEZER, COOKER",Resources Directorate,Grants,F473,
http://opendatacommunities.org/id/london-borough-council/sutton,London Borough of Sutton,15/11/2018,1264376,126.62 , WWW.ARGOS.CO.UK,DINGLE DIVAN BED,Resources Directorate,Grants,F473,
http://opendatacommunities.org/id/london-borough-council/sutton,London Borough of Sutton,23/11/2018,1264376,333.32 , WWW.ARGOS.CO.UK,PURCHASE OF GOODS FOR CRISIS LOAN AND GRANT SCHEME,Resources Directorate,Grants,F473,
http://opendatacommunities.org/id/london-borough-council/sutton,London Borough of Sutton,13/11/2018,1264376,610.00 , WWW.GOV.UK,PROBATE CERTIFICATES X 61,Resources Directorate,General Office Expenses,F235,
http://opendatacommunities.org/id/london-borough-council/sutton,London Borough of Sutton,14/11/2018,1264376,33.90 , PAYPAL  GOOGLEADDON,AP AWESOME GAPPS PAYMENT TO BUY UNLIMITED GOOGLE FORMS 2018,Resources Directorate,Purchase of Software,F381,
http://opendatacommunities.org/id/london-borough-council/sutton,London Borough of Sutton,23/11/2018,1264376,22.00 , SURREY CC CARD PAY,22.00 - F106 6405 9999 - SURREY REGISTER OFFICE REFUND.PDF,Peoples Services Directorate,Personal Requisites,F106,
http://opendatacommunities.org/id/london-borough-council/sutton,London Borough of Sutton,05/11/2018,1264376,194.65 , SHAWS & SONS LIMITED,MENTAL HEALTH WARRANT STATIONARY,Peoples Services Directorate,Administrative Equipment,F001,
http://opendatacommunities.org/id/london-borough-council/sutton,London Borough of Sutton,27/10/2018,1264376,49.88 , AMAZON.CO.UK MT4TP4MH4,49.98 - F104 6431 9999 - AMAZON ORDER.PNG,Peoples Services Directorate,Other-Materials,F115,
http://opendatacommunities.org/id/london-borough-council/sutton,London Borough of Sutton,16/11/2018,1264376,33.15 , WIX.COM,SUBSCRIPTION FEES FOR HR,Peoples Services Directorate,Fees - Other,F299,
http://opendatacommunities.org/id/london-borough-council/sutton,London Borough of Sutton,16/11/2018,1264376,121.25 , WIX.COM,SUBSCRIPTION FEES FOR HR,Peoples Services Directorate,Fees - Other,F299,
http://opendatacommunities.org/id/london-borough-council/sutton,London Borough of Sutton,12/11/2018,1264376,45.00 , FIRST FLOWERS DIRECT L,FLOWERS,Peoples Services Directorate,Fees - Room Hire,F290,
http://opendatacommunities.org/id/london-borough-council/sutton,London Borough of Sutton,08/11/2018,1264376,(54.17), HOTEL ON BOOKING.COM,REFUND OF ARDEN HOTEL ACCOMMODATION COST,Peoples Services Directorate,Training - Travel and Subsistence,A521,
http://opendatacommunities.org/id/london-borough-council/sutton,London Borough of Sutton,07/11/2018,1264376,64.17 , SCARMAN,WARWICK CONFERENCES SCARMAN HOTEL ACCOMMODATION,Peoples Services Directorate,Training - Travel and Subsistence,A521,
http://opendatacommunities.org/id/london-borough-council/sutton,London Borough of Sutton,02/11/2018,1264376,65.10 , TRAINLINE,TRAIN TICKETS,Peoples Services Directorate,Training - Travel and Subsistence,A521,
http://opendatacommunities.org/id/london-borough-council/sutton,London Borough of Sutton,02/11/2018,1264376,54.17 , HOTEL ON BOOKING.COM,WARWICK CONFERENCES HOTEL ACCOMMODATION,Peoples Services Directorate,Training - Travel and Subsistence,A521,
